Cogmind - Beta 15 @@@ ROGUE MODE // 2025.09.10 @ 18:22:49 // Winter2019/RPGLIKE Player: moonlol Result: Destroyed by S-10 Pest with Light Assault Rifle Performance ------------- Evolutions (2) 1000 Regions Visited (3) 600 Robots Destroyed (44) 220 Value Destroyed (1224) 1224 Prototype IDs (11) 220 Alien Tech Used (0) 0 Bonus (0) 0 TOTAL SCORE: 3264 Bonus ------- None Cogmind --------- Core Integrity 0/700 Matter 294/300 Energy 21/125 System Corruption 0% Temperature Cool (22) Movement Hovering (56) Location -8/Materials Parts ------- > --- POWER (1+1) ------ Light Ion Engine > --- PROPULSION (3) --- Improved Hover Unit Improved Hover Unit Flight Unit > --- UTILITY (2) ------ Advanced Visual Processing Unit Improved Signal Interpreter > --- WEAPON (3) ------- Powered Cannon Slug Cannon > --- INVENTORY (3) ---- Hardened Medium Armor Plating Makeshift Hammer Peak State ------------ > --- POWER ------------ Light Ion Engine > --- PROPULSION ------- Improved Hover Unit Flight Unit Cesium-ion Thruster > --- UTILITY ---------- Advanced Visual Processing Unit Improved Signal Interpreter > --- WEAPON ----------- Powered Cannon Slug Cannon > --- INVENTORY -------- Hardened Medium Armor Plating Subdweller Shrapnel Launcher Makeshift Hammer [Rating: 31] Favorites ----------- Power Light Ion Engine Engine Light Ion Engine Propulsion Flight Unit Leg Aluminum Leg Wheel Subdweller Monowheel Hover Unit Improved Hover Unit Flight Unit Flight Unit Utility Scrap Shield Device Improved Terrain Scanner Processor Targeting Computer Protection Scrap Shield Weapon Light Assault Rifle Energy Gun Medium Laser Energy Cannon Subdweller Beam Cannon Ballistic Gun Light Assault Rifle Ballistic Cannon Slug Cannon Launcher Subdweller Shrapnel Launcher Impact Weapon Makeshift Hammer Build | -11 -10 -10 -8 ------- Run | Yrd Mat Sub Mat Slots Evolved 5 | 3 . 2 . Power . | . . . . Propulsion 2 | 1 . 1 . Utility 1 | 1 . . . Weapon 2 | 1 . 1 . Parts Attached 30 | 7 6 11 6 Power 3 | 1 . 2 . Engine 3 | 1 . 2 . Core . | . . . . Reactor . | . . . . Propulsion 11 | 2 3 3 3 Treads . | . . . . Leg 2 | 2 . . . Wheel 3 | . . 3 . Hover 2 | . . . 2 Flight 4 | . 3 . 1 Utility 7 | 2 1 1 3 Device 2 | 2 . . . Storage . | . . . . Processor 3 | . 1 . 2 Hackware . | . . . . Protection 2 | . . 1 1 Artifact . | . . . . Weapon 9 | 2 2 5 . Energy Gun 2 | 1 1 . . Energy Cannon 3 | . 1 2 . Ballistic Gun 1 | 1 . . . Ballistic Cannon 1 | . . 1 . Launcher 1 | . . 1 . Special Weapon . | . . . . Impact Weapon 1 | . . 1 . Slashing Weapon . | . . . . Piercing Weapon . | . . . . Special Melee Weapon . | . . . . Unidentified Prototypes . | . . . . Parts Lost 1 | . . 1 . Power . | . . . . Propulsion 1 | . . 1 . Utility . | . . . . Weapon . | . . . . Highest Loss Streak 1 | . . 1 . To Critical Strikes . | . . . . Average Backups 2 | 1 2 2 2 Power . | . 1 . . Propulsion . | . . . . Utility . | . . . . Weapon 1 | . 1 1 2 Tool/Special . | . . . . Unused Backups 2 | . 1 . 1 Power . | . . . . Propulsion . | . . . . Utility . | . . . . Weapon 2 | . 1 . 1 Tool/Special . | . . . . Average Slot Usage (%) 81 | . 99 80 64 Engine 11 | . 14 11 10 Leg 1 | . 9 . . Wheel 8 | . . 9 2 Flight 13 | . 18 13 15 Device 3 | . 19 1 . Processor 2 | . 8 1 11 Protection 8 | . . 10 2 Energy Gun 6 | . 8 6 . Energy Cannon 10 | . 6 11 10 Ballistic Gun 7 | . 12 7 . Impact Weapon 3 | . . 4 2 Peak Build Rating 31 | 9 10 26 31 Average Rating 15 | 5 9 15 27 On Entrance 11 | . 9 9 26 Naked Turns . | . . . . Heaviest Build 39 | 8 10 39 33 Greatest Support 25 | 20 20 25 25 Greatest Overweight (x) 3 | . 1 3 1 Average Overweight (x) . | . . . . Largest Inventory Capacity 3 | 2 2 2 3 Average Capacity 2 | 2 2 2 2 Most Carried 3 | 2 2 2 3 Average Carried 2 | 1 2 1 2 Final Capacity 3 | 2 2 2 3 Final Carried 2 | 2 2 2 2 Class Distribution -------------------- 43% | Mutant 33% | Subdweller-Gunner 12% | Subdweller-Mutant 8% | Gunner Dominant Class ---------------- Mutant | -10/Materials Subdweller-Gunner | -10/Subcaves Skirmisher | -8/Materials Resources | -11 -10 -10 -8 ----------- Run | Yrd Mat Sub Mat Matter Collected 1178 | 275 125 628 150 Remotely 196 | 146 50 . . Salvage Created 1490 | 95 353 823 219 Parts 98 | 6 28 56 8 Haulers Intercepted 1 | . 1 . . Recyclers Shooed 1 | 1 . . . Parts Field Recycled . | . . . . Retrieved Matter . | . . . . Parts Self-Destructed 14 | . . 14 . Prevented . | . . . . Kills | -11 -10 -10 -8 ------- Run | Yrd Mat Sub Mat Combat Hostiles Destroyed 34 | . 9 23 2 Guns 10 | . 7 3 . Cannons 17 | . 2 14 1 AOE 6 | . . 6 . Classes Destroyed 11 | 2 5 3 1 Worker 1 | . 1 . . Tunneler 1 | 1 . . . Hauler 1 | . 1 . . Recycler 3 | 1 1 . 1 Turret 2 | . . 2 . Watcher 2 | . 1 . 1 Swarmer 10 | . 5 5 . Grunt 6 | . 4 2 . Sentry 1 | . . 1 . Hunter 2 | . . . 2 Subdweller 15 | . . 15 . Best Kill Streak 6 | 1 5 6 4 Combat Bots Only 5 | . 5 5 2 Max Kills in Single Turn 2 | 1 2 2 1 Gunslinging . | . . . . Exploded 2 | . . 2 . Melee . | . . . . Uniques/NPCs Destroyed . | . . . . Combat | -11 -10 -10 -8 -------- Run | Yrd Mat Sub Mat Hostile Shots Fired 187 | . 47 117 23 Missed 68 | . 15 42 11 Hits 119 | . 32 75 12 Projectile 119 | . 32 75 12 AOE 3 | . . 3 . Damage Taken 1875 | . 345 1369 161 Core 1248 | . 278 842 128 Absorbed by Shields . | . . . . Redirected to Core 889 | . 203 572 114 Regen/Repaired (Parts) 11 | . . . 11 Core Remaining (%) 58 | 100 . 17 . Volleys Fired 106 | 5 30 63 8 Largest 3 | 2 2 3 2 Hottest 160 | 70 125 160 120 Shots Fired 216 | 10 60 133 13 Gun 128 | 10 54 64 . Cannon 72 | . 6 53 13 Launcher 16 | . . 16 . Special . | . . . . Kinetic 99 | 5 25 63 6 Thermal 117 | 5 35 70 7 Explosive . | . . . . Electromagnetic . | . . . . Robot Hit Streak 33 | 2 9 33 3 Robot Miss Streak 3 | 3 3 3 2 Penetration Max . | . . . . Secondary Targets 2 | . 2 . . Max Gunslinging Chain 1 | . 1 . . Shots Hit Robots 131 | 4 38 84 5 Core Hits 67 | 3 20 41 3 Critical Kills 2 | . . . 2 Critical Parts Destroyed . | . . . . Critical Strikes 6 | . 1 3 2 Burn 4 | . 1 3 . Meltdown 1 | . . . 1 Destroy 1 | . . . 1 Melee Attacks 44 | . . 43 1 Impact 44 | . . 43 1 Slashing . | . . . . Piercing . | . . . . Sneak Attacks . | . . . . Combat Hostiles . | . . . . Follow-up Attacks . | . . . . Damage Inflicted 2749 | 40 462 2017 230 Guns 929 | 40 410 479 . Cannons 1146 | . 52 864 230 Explosions 674 | . . 674 . Melee . | . . . . Ramming . | . . . . Kinetic 1185 | 15 146 953 71 Thermal 1564 | 25 316 1064 159 Explosive . | . . . . Electromagnetic . | . . . . Impact . | . . . . Slashing . | . . . . Piercing . | . . . . Highest Corruption . | . . . . Average Corruption . | . . . . Corruption Purged . | . . . . Corruption Blocked . | . . . . Overload Shots 1 | . . . 1 Overflow Damage 67 | . . 67 . Projectiles . | . . . . Explosions 67 | . . 67 . Melee . | . . . . Knockbacks . | . . . . Impact . | . . . . Kinetic . | . . . . Secondary . | . . . . Self-Inflicted Damage 15 | . . 15 . Shots 1 | . . 1 . Rammed . | . . . . Targets Rammed . | . . . . Kicked . | . . . . Crushed . | . . . . Highest Temperature 392 | 70 392 246 100 Average Temperature 103 | 32 158 66 30 Received Heat Transfer 435 | . 123 312 . Effects 3 | . 1 2 . Energy Bleed 2 | . 1 1 . Interference 1 | . . 1 . Siege Activations . | . . . . Martial Activations . | . . . . Shielding Activations . | . . . . Robots Disrupted . | . . . . Combat Hostiles . | . . . . Robots Corrupted . | . . . . Combat Hostiles . | . . . . Parts Fried . | . . . . Impact Corruptions . | . . . . Robots Melted 1 | . . . 1 Combat Hostiles 1 | . . . 1 Parts Melted 10 | . 3 5 2 Heat Transferred 3256 | 74 925 2257 . Parts Sabotaged . | . . . . Parts Stolen . | . . . . Parts Stripped . | . . . . Power Chain Reactions . | . . . . Alert | -11 -10 -10 -8 ------- Run | Yrd Mat Sub Mat Maximum Alert Level . | . . . . Low Security (%) 100 | 100 100 . 100 Level 1 . | . . . . Level 2 . | . . . . Level 3 . | . . . . Level 4 . | . . . . Level 5 . | . . . . High Security . | . . . . Max Security . | . . . . Peak Influence 164 | 5 164 . 107 Initial 66 | . . . 66 Average 68 | . 82 . 57 Influence Increases 720 | 10 244 345 121 Destroy 0b10 Robot/C 420 | . 180 200 40 Destroy 0b10 Robot/NC 40 | 10 20 . 10 Destroy Leader 76 | . 44 10 22 Successful Hack 14 | . . . 14 Disable Machine 15 | . . . 15 Destroy Structure 5 | . . . 5 Lose Combat Pursuer 150 | . . 135 15 Influence Decreases 613 | 10 178 283 142 Entered New Map 95 | . . 33 62 Time Decay 518 | 10 178 250 80 Squads Dispatched 2 | . 1 . 1 Investigation . | . . . . Extermination . | . . . . Reinforcement 2 | . 1 . 1 Assault . | . . . . Garrison . | . . . . Intercept . | . . . . Searches Triggered . | . . . . Construction Impeded . | . . . . Haulers Reinforced . | . . . . Active Scanning Responses . | . . . . Cargo Convoy Interrupts . | . . . . Stealth | -11 -10 -10 -8 --------- Run | Yrd Mat Sub Mat Distress Signals 2 | . 2 . . Communications Jammed . | . . . . Distress Signals . | . . . . Times Spotted 44 | . 14 24 6 Peak Tracking Total 6 | . 6 3 4 Tactical Retreats 4 | . . 3 1 Traps | -11 -10 -10 -8 ------- Run | Yrd Mat Sub Mat Traps Triggered 2 | . 1 1 . Indirectly . | . . . . Trap Hack Attempts . | . . . . Triggered . | . . . . Disarmed . | . . . . Reprogrammed . | . . . . Reused . | . . . . Traps Extracted . | . . . . Installed . | . . . . Triggered . | . . . . Machines | -11 -10 -10 -8 ---------- Run | Yrd Mat Sub Mat Machines Disabled 6 | . . 5 1 Max in Single Turn 2 | . . 2 1 Machines Repaired . | . . . . Machines Dismantled . | . . . . Machines Sabotaged . | . . . . Overloaded Fab Kills . | . . . . Hacking | -11 -10 -10 -8 --------- Run | Yrd Mat Sub Mat Machines Accessed 5 | . . 2 3 Terminals 2 | . . . 2 Fabricators . | . . . . Repair Stations 1 | . . . 1 Recycling Units . | . . . . Scanalyzers . | . . . . Garrison Access . | . . . . Total Hacks 13 | . . 5 8 Successful 11 | . . 5 6 Failed 2 | . . . 2 Catastrophic . | . . . . Database Lockouts . | . . . . Manual 4 | . . . 4 Terminals 4 | . . . 4 Fabricators . | . . . . Repair Stations 4 | . . . 4 Recycling Units . | . . . . Scanalyzers . | . . . . Garrison Access . | . . . . Terminal Hacks 5 | . . 5 . Record 4 | . . 4 . Proto ID Catalog 1 | . . 1 . Fabricator Hacks . | . . . . Repair Station Hacks 4 | . . . 4 Scan Component 3 | . . . 3 Repair 1 | . . . 1 Recycling Unit Hacks . | . . . . Scanalyzer . | . . . . Garrison Access Hacks . | . . . . Unauthorized Hacks 2 | . . . 2 Terminals 2 | . . . 2 Botnet 1 | . . . 1 Operators 1 | . . . 1 Fabricators . | . . . . Repair Stations . | . . . . Recycling Units . | . . . . Scanalyzers . | . . . . Garrison Access . | . . . . Data Cores Recovered . | . . . . Used . | . . . . Hacking Detections 2 | . . . 2 Full Trace Events . | . . . . Feedback Events . | . . . . Feedback Blocked . | . . . . Robot Schematics Acquired . | . . . . Robots Built . | . . . . Authchips . | . . . . Time . | . . . . Total Robot Build Rating . | . . . . Part Schematics Acquired . | . . . . Parts Built . | . . . . Authchips . | . . . . Time . | . . . . Total Part Build Rating . | . . . . Parts Repaired 1 | . . . 1 Time 26 | . . . 26 Parts Recycled . | . . . . Recycled Matter . | . . . . Retrieved Matter . | . . . . Retrieved Components . | . . . . Parts Scanalyzed . | . . . . Part Schematics Acquired . | . . . . Parts Damaged . | . . . . Bothacking | -11 -10 -10 -8 ------------ Run | Yrd Mat Sub Mat Used RIF Installer . | . . . . Robots Hacked . | . . . . Non-combat . | . . . . Combat . | . . . . Robot Hacks Applied . | . . . . Relay Couplers Released . | . . . . Fabnet Peak Effective % . | . . . . Robots Rewired . | . . . . Allies Hacked . | . . . . Hacks Repelled . | . . . . Allies | -11 -10 -10 -8 -------- Run | Yrd Mat Sub Mat Total Allies . | . . . . Largest Group . | . . . . Highest-Rated Group . | . . . . Highest-Rated Ally . | . . . . Total Orders . | . . . . Ally Attacks . | . . . . Total Damage . | . . . . Kills . | . . . . Allies Corrupted . | . . . . Allies Melted . | . . . . Intel | -11 -10 -10 -8 ------- Run | Yrd Mat Sub Mat Active Infowar (turns) 1072 | 28 509 441 94 Optics 94 | . . . 94 Terrain 978 | 28 509 441 . Robot Analysis Total . | . . . . Derelict Logs Recovered 3 | . . 3 . Drone Launches . | . . . . Drone Recoveries . | . . . . Exploration | -11 -10 -10 -8 ------------- Run | Yrd Mat Sub Mat Turns Passed 4369 | 72 509 3610 178 Spaces Moved 3116 | 43 213 2653 207 Core 26 | 7 . 19 . Treads . | . . . . Legs 144 | 36 108 . . Wheels 2324 | . . 2292 32 Hover 12 | . . . 12 Flight 610 | . 105 342 163 Fastest Speed 34 | 50 37 37 34 Average Speed 104 | 108 82 110 49 Slowest Speed 200 | 120 130 200 120 Overloaded Moves . | . . . . Propulsion Burnouts . | . . . . Robots Hopped 1 | . 1 . . Potential Cave-ins . | . . . . Cave-ins Triggered . | . . . . Exploration Rate (%) 38 | 3 36 96 17 Regions Visited 3 Branch Regions 1 Pre-discovered Areas 2 | . . 2 . Known Exits Taken . | . . . . Unknown Exits Taken 3 | 1 1 1 . Scrap Searched 9 | . . 9 . Spaces Dug 2 | . . 2 . Terrain Destroyed 157 | . . 152 5 Melee 2 | . . 2 . Projectile 9 | . . 4 5 AOE 146 | . . 146 . Terrain Rammed . | . . . . Walls Destroyed . | . . . . Machines Disabled . | . . . . Actions | -11 -10 -10 -8 --------- Run | Yrd Mat Sub Mat Total 3999 | 56 485 3191 267 Wait 626 | . 220 374 32 Move 3111 | 42 210 2652 207 Hop 1 | . 1 . . Pick Up 6 | 2 1 2 1 Fast Attach 18 | 7 1 3 7 Attach 2 | . . 1 1 Detach 2 | . . 1 1 Swap 30 | . 9 17 4 Drop 13 | . 2 6 5 Fire 106 | 5 30 63 8 Melee 44 | . . 43 1 Ram . | . . . . Kick . | . . . . Crush . | . . . . Escape Stasis . | . . . . Rewire . | . . . . Trap . | . . . . Miscellaneous 40 | . 11 29 . Route ------- -11/Scrapyard -10/Materials (discovered 2 exits: [*Mat] / *Sub) -10/Subcaves (discovered 3 exits: *Mat x2 / [*Rec]) -8/Materials History --------- Turn | Location | Event 1 | -11/Scrapyard | Upgraded with Propulsion slot (x1) 1 | -11/Scrapyard | Upgraded with Utility slot (x1) 1 | -11/Scrapyard | Upgraded with Weapon slot (x1) 26 | -11/Scrapyard | Discovered new exit (range 14) 73 | -11/Scrapyard | Entered Materials 269 | -10/Materials | Discovered new exit (range 16) 300 | -10/Materials | Build established: Mutant 564 | -10/Materials | Discovered new exit (range 9) 582 | -10/Materials | Entered Subcaves 583 | -10/Subcaves | Approached by a straggling Scientist 584 | -10/Subcaves | Reached level 2 584 | -10/Subcaves | Upgraded with Weapon slot (x1) 638 | -10/Subcaves | Learned Materials emergency access door positions 997 | -10/Subcaves | Ambushed by Subdweller buried in earth 1000 | -10/Subcaves | Core integrity fell below 50% 1230 | -10/Subcaves | Core integrity fell below 20% 1282 | -10/Subcaves | Shifting Twisted Machinery released Sub. Beam Cannon 1556 | -10/Subcaves | Shifting Twisted Machinery released Spk. Treads 1578 | -10/Subcaves | Discovered new exit (range 12) 1580 | -10/Subcaves | Build established: Subdweller-Gunner 1810 | -10/Subcaves | Shifting Twisted Machinery released Sub. Beam Cannon 1873 | -10/Subcaves | Visited Clippyterm 1877 | -10/Subcaves | Learned location of Deep Caves (-6) 1919 | -10/Subcaves | Discovered new exit (range 11) 2267 | -10/Subcaves | A swath of the cavern ceiling suddenly collapsed 2547 | -10/Subcaves | Reached level 3 2641 | -10/Subcaves | Discovered new exit (range 16) 2671 | -10/Subcaves | A swath of the cavern ceiling suddenly collapsed 2718 | -10/Subcaves | Learned location of Zion (-6) 2718 | -10/Subcaves | Met a Zionite searching for "candidates" 2869 | -10/Subcaves | Shifting Twisted Machinery released Slug Cannon 2880 | -10/Subcaves | Shifting Twisted Machinery released Mak. Laser 3247 | -10/Subcaves | Build established: Subdweller-Mutant 3249 | -10/Subcaves | Visited 4L-MR0's lab 3266 | -10/Subcaves | Found Powered Cannon 3267 | -10/Subcaves | Attached Powered Cannon, gained temporary slot: Power 3332 | -10/Subcaves | Upgraded with Propulsion slot (x1) 3767 | -10/Subcaves | Learned Materials stockpile data 3896 | -10/Subcaves | Build established: Mutant 4192 | -10/Subcaves | Entered Materials 4193 | -8/Materials | Core integrity fell below 50% 4193 | -8/Materials | Core integrity fell below 20% 4194 | -8/Materials | Reached level 4 4318 | -8/Materials | Repaired Flight Unit 4370 | -8/Materials | Destroyed by S-10 Pest with Light Assault Rifle Last Messages --------------- 04350_ K-01 Serf collects debris. 04351_ R-06 Scavenger collects Visual Processing Unit. 04353_ Acquired 30 matter. 04353_ Penetrated by Slug. 04354_ K-01 Serf collects debris. 04355_ U-05 Engineer builds a Wall. 04355_ R-06 Scavenger collects Cesium-ion Thruster. 04355_ Acquired Imp. Hover Unit. 04356_ Penetrated by Slug. 04357_ H-55 Commando suffers critical hit (Meltdown). 04357_ Lgt. Nuclear Core melted. 04357_ Assault Rifle melted. 04358_ K-01 Serf collects debris. 04361_ Sub. Shrapnel Launcher shoots sparks and powers down. 04361_ K-01 Serf collects debris. 04363_ Dropped Broken Sub. Shrapnel Launcher. 04364_ Acquired 36 matter. 04365_ R-06 Scavenger collects Assault Rifle. 04366_ K-01 Serf collects debris. 04368_ R-06 Scavenger collects Carbon-fiber Leg. Map ----- +----------------------------------------------------+ | ??????o??????????????????????????????????????????? | | ?????????????????????????????????????????????????? | | ????????????????????????????????????????!?????? | | ??????????!?????????????????????????????????? | | #??????????????? ???????????????????????????? | | #??????????????# ???????????????????????????? | | #??????????????# ???????????????????????????? | | #??????????????# #??????????????????????????? | | #??????????????# #??????????????????????????? | | #?????#+#??????# #??????????????????????????? | | #?????# ###??### #??????????????????????????? | | #?????# ??? /??????????????????????????? | | +?????# ######+#######????????????????????? | | #?????# # #????????????????????? | | #?????# # """ """ ]#????????????????????? | | #?????# # """ """ #????????????????????? | | #?????# # """ """ #????????o???????????? | | ####### # #????????????????????? | | ##/#############??????g???????????? | | =% ! b?????????????? | | s ######??????????????????????? | | """"""% #???????????????????????????? | | """"""" #??????????????????????###??? | | """"""" % ##???????#######????####"#### | | """"""" ]s #;######## ! #????# # | | """"""" % ss @ ###### # | | % [ ! # | | [ r k= ! #######+###### | | ##+####### #######+## #??# #? | | # ????# ## ###+####?# #? | | ##+#### ?"???# ## "" # #?# #? | | + "???Y# + "" # T #?# """ #? | | """ # ????######## "T + #?# """"" #? | | """ # !??????????# "" # #?# """"" #? | | """ # [??????????# "" # #?# """"" #? | | # ?????????# # !=#?# """ #? | | " " # """""?????????# """ ########?# ?? #? | | "R" # """"" ????????# """ #????????##????####? | | """ # """"" ????????# """ #??????????????????? | | # ?#???????# #??????????????????? | | ##########????????????########???????????????????? | | | | | | | | | | | | | | | | | | | +----------------------------------------------------+ Best States ------------- Heat Dissipation 25 Energy Generation 10 Energy Capacity 125 Matter Stores 300 Matter Capacity 300 Sight Range 20 Robot Scan Range 14 Terrain Scan Range 16 Terrain Scan Density 10 Armor Coverage 800 Evasion (%) 63 Targeting Accuracy 5 Item Schematics ----------------- None Robot Schematics ------------------ None Fabricated ------------ Nothing Repaired ---------- Flight Unit | 45% | -8/Materials Alien Tech Used ----------------- None Achievements -------------- None Challenges ------------ None RPGLIKE | -11 -10 -10 -8 --------- Run | Yrd Mat Sub Mat Levels Raised 3 | . . 2 1 XP Earned 8095 | 3000 1100 2050 1945 XP Spent 7135 | 2925 . 2860 1350 Upgrades 21 | 11 . 8 2 Propulsion Slot 2 | 1 . 1 . Utility Slot 1 | 1 . . . Weapon Slot 2 | 1 . 1 . Core Integrity 2 | . . 2 . Mass Support 2 | . . 1 1 Inventory Capacity 3 | 2 . . 1 Sensor Range 7 | 6 . 1 . Ranged Accuracy 2 | . . 2 . Protomatter Created 256 | . 104 152 . Integrity Restored 556 | . 196 360 . Core 542 | . 182 360 . Parts 14 | . 14 . . Protomatter Decayed 68 | . 9 59 . Game ------ Seed LinkedMicroBrace Manual? 0 Play Time 00:29:21 Cumulative 105.8 hours Start 2025.09.10 @ 17:55:07 End 2025.09.10 @ 18:22:49 Sessions 1 Manual Loads 0 Difficulty Rogue Special Mode Winter2019/RPGLIKE Game No. 133 Rogue 85 Adventurer 47 Explorer 1 Win Type - Total 10 Types 7/0/0/1/0/0/2/0/0/0 Lore% 61 Gallery% 56 Achievement% 63 Wizard Run 0 Options --------- Layout 0 ASCII 0 Keyboard 1 Movement Numpad Keybinds 0 Fullscreen 2 Font 18/SmallcapsGlow Map View 76x50 Zoom Use 0% Tactical HUD 1 Map Filters NONE Filters NONE Steam 1 RUN: fa4ae32c-7ecb-405d-9ce2-289bf94950fb